bitfinex-derivatives/quotes_SOLF0:USTF0_20250221
["timestamp","ask_amount","ask_price","bid_price","bid_amount"]
[1740129908879,0.04020437,179.59,179.55,0.03985965]
[1740129909478,5.60750437,179.59,179.55,0.03985965]
[1740129909679,0.04020437,179.59,179.55,0.03985965]
[1740129909980,0.04020437,179.59,179.55,5.60805965]
[1740129910175,0.04020437,179.59,179.55,0.03985965]
[1740129910879,0.04020437,179.59,179.56,5.29383128]
[1740129911080,0.04020437,179.59,179.58,5.5673]
[1740129911384,0.04020437,179.59,179.55,0.03985965]
[1740129911580,0.04020437,179.59,179.56,5.29454884]
[1740129911787,0.04020437,179.59,179.55,0.03985965]
[1740129912178,5.60740437,179.59,179.55,0.03985965]
[1740129912382,0.04020437,179.59,179.55,0.03985965]
[1740129916979,5.5677,179.57,179.55,0.03985965]
[1740129917689,5.5679,179.56,179.55,5.965e-05]
[1740129918087,33.02577444,179.56,179.48,5.30393737]
[1740129918281,24.26577444,179.51,179.43,28.89264253]
[1740129919087,5.5712,179.46,179.43,28.89264253]
[1740129919292,5.5712,179.46,179.45,0.03554636]
[1740129919885,24.26577444,179.45,179.35,28.89264253]
[1740129920088,24.26577444,179.41,179.35,28.89264253]
[1740129920783,24.26577444,179.44,179.35,28.89264253]
[1740129920990,0.03945817,179.4,179.38,5.5734]
[1740129921191,0.03945817,179.4,179.36,0.03728704]
[1740129921385,0.03945817,179.4,179.35,28.89264253]
[1740129921585,0.03945817,179.4,179.36,0.03719696]
[1740129924490,5.61245817,179.4,179.36,0.03719696]
[1740129924691,0.03945817,179.4,179.36,0.03719696]
[1740129925288,24.26577444,179.38,179.23,28.89264253]
[1740129925484,24.26577444,179.38,179.24,13.72703857]
[1740129925887,24.26577444,179.38,179.24,8.4486]
[1740129926088,5.5741,179.36,179.24,8.4486]
[1740129926484,0.0356225,179.32,179.28,0.0411098]
[1740129926685,0.0356225,179.32,179.28,5.6174098]
[1740129927392,0.0356225,179.32,179.28,0.0411098]
[1740129927584,5.576,179.3,179.28,0.0411098]
[1740129927788,24.30139694,179.32,179.28,0.0411098]
[1740129928183,5.5763,179.29,179.28,0.0411098]
[1740129928887,0.0356225,179.32,179.28,0.0411098]
[1740129929089,193.0,179.5,179.3,24.26577444]
[1740129929295,24.26577444,179.45,179.3,24.26577444]
[1740129929592,0.93302144,179.44,179.3,24.26577444]
[1740129930094,24.26577444,179.45,179.37,5.5736]
[1740129930289,0.03529585,179.39,179.37,5.5736]
[1740129930486,0.93290915,179.47,179.3,24.26577444]
[1740129930790,0.03875984,179.4,179.36,0.03780739]
[1740129931103,24.26577444,179.48,179.34,5.6743]
[1740129931290,0.04261521,179.4,179.36,0.03564166]
[1740129931588,24.26577444,179.45,179.34,11.2488]
[1740129931790,0.04083655,179.4,179.36,0.03676941]
[1740129932296,5.5738,179.37,179.36,0.03676941]
[1740129932495,24.26577444,179.38,179.36,0.03676941]
[1740129933695,5.5738,179.37,179.3,5.576]
[1740129933895,24.26577444,179.38,179.21,27.05837444]
[1740129934298,5.5742,179.36,179.3,5.5759]
[1740129934498,5.5742,179.36,179.22,3.0254]
[1740129934499,24.26577444,179.35,179.22,3.0254]
[1740129935002,0.03862912,179.3,179.27,0.04203696]
[1740129935300,0.03862912,179.3,179.28,5.5764]
[1740129935688,0.03862912,179.3,179.27,0.04203696]
[1740129935893,0.03862912,179.3,179.29,5.5763]
[1740129937008,5.7087,179.4,179.27,0.04203696]
[1740129937301,11.2816,179.4,179.27,24.26577444]
[1740129937701,11.2816,179.4,179.34,5.5746]
[1740129937906,5.5735,179.38,179.27,24.26577444]
[1740129938298,0.04038217,179.34,179.31,5.61187033]
[1740129938493,0.04038217,179.34,179.31,0.03647033]
[1740129939198,220.02597444,179.44,179.31,0.03647033]
[1740129939397,24.26577444,179.41,179.31,0.03647033]
[1740129939601,5.5739,179.37,179.32,5.5752]
[1740129939800,24.26577444,179.41,179.24,24.26577444]
[1740129940004,0.93322855,179.4,179.24,24.26577444]
[1740129940304,5.5748,179.34,179.29,5.5762]
[1740129940499,0.03798262,179.34,179.3,0.03565873]
[1740129940702,5.61298262,179.34,179.3,5.61155873]
[1740129940902,0.03798262,179.34,179.3,0.03565873]
[1740129941500,5.75478262,179.34,179.3,0.03565873]
[1740129942005,5.5751,179.33,179.3,0.03565873]
[1740129942206,5.75478262,179.34,179.3,0.03565873]
[1740129942706,5.5751,179.33,179.3,0.03565873]
[1740129943309,2.99458262,179.34,179.3,0.03565873]
[1740129944503,5.5753,179.32,179.3,0.03565873]
[1740129944700,2.99458262,179.34,179.3,0.03565873]
[1740129945107,5.5756,179.32,179.3,0.03565873]
[1740129947012,2.99458262,179.34,179.3,0.03565873]
[1740129947318,5.5757,179.31,179.3,0.03565873]
[1740129948109,5.5753,179.33,179.3,0.03565873]
[1740129948311,0.03798262,179.34,179.3,0.03565873]
[1740129949215,5.5757,179.31,179.3,0.03565873]
[1740129949921,5.5753,179.33,179.3,0.03565873]
[1740129950122,0.03798262,179.34,179.3,0.03565873]
[1740129950522,5.5755,179.32,179.3,0.03565873]
[1740129951219,0.03798262,179.34,179.3,0.03565873]
[1740129951420,5.5757,179.31,179.3,0.03565873]
[1740129954622,0.03798262,179.34,179.3,0.03565873]
[1740129956025,5.5757,179.31,179.3,0.03565873]
[1740129957022,0.03798262,179.34,179.3,0.03565873]
[1740129957925,5.5757,179.31,179.3,0.03565873]
[1740129961927,5.5763,179.29,179.22,5.8772]
[1740129962120,24.26577444,179.32,179.24,5.5778]
[1740129962323,24.26577444,179.29,179.21,2.7926]
[1740129962523,5.5772,179.26,179.21,2.7926]
[1740129962916,15.28926,179.27,179.2,30.15980136]
[1740129963123,15.28926,179.24,179.22,0.04247277]
[1740129963522,5.5781,179.23,179.22,0.04247277]
[1740129963826,15.28926,179.24,179.2,30.15980136]
[1740129964329,8.39798205,179.25,179.2,30.15980136]
[1740129964529,8.39798205,179.25,179.18,10.42835034]
[1740129964927,8.39798205,179.25,179.2,0.03696589]
[1740129965627,20.86736,179.24,179.2,0.03696589]
[1740129965828,15.28926,179.24,179.2,0.03696589]
[1740129966025,15.28926,179.24,179.2,5.61606589]
[1740129966227,8.39798205,179.25,179.2,5.61606589]
[1740129966424,8.39798205,179.25,179.2,0.03696589]
[1740129966824,0.03798205,179.25,179.24,5.5778]
[1740129967427,23.64926,179.33,179.22,15.28926]
[1740129967829,5.5754,179.32,179.22,15.28926]
[1740129968135,208.28926,179.36,179.29,5.576]
[1740129968335,15.28926,179.36,179.22,15.28926]
[1740129968724,0.03631373,179.31,179.27,0.04230165]
[1740129969728,0.03631373,179.31,179.28,5.5765]
[1740129970139,0.03631373,179.31,179.27,0.04230165]
[1740129970435,0.03631373,179.31,179.27,5.61900165]
[1740129970638,0.03631373,179.31,179.27,0.04230165]
[1740129970937,5.5762,179.3,179.27,0.04230165]
[1740129971133,0.03631373,179.31,179.27,0.04230165]
[1740129971929,15.28926,179.3,179.27,0.04230165]
[1740129972535,5.5766,179.28,179.27,0.04230165]
[1740129973132,5.5788,179.21,179.19,5.9555]
[1740129973331,15.28926,179.27,179.19,2.9411]
[1740129973635,15.28926,179.3,179.19,2.9411]
[1740129973937,5.5765,179.29,179.2,15.28926]
[1740129974138,15.28926,179.33,179.25,5.5775]
[1740129974341,0.03877021,179.26,179.23,0.04082948]
[1740129974639,30.26831679,179.34,179.19,2.9411]
[1740129974839,0.93368871,179.33,179.19,2.9411]
[1740129975139,30.26831679,179.34,179.19,2.9411]
[1740129975140,5.5767,179.28,179.19,2.9411]
[1740129975334,24.45051679,179.31,179.19,8.5204]
[1740129975639,0.04119916,179.27,179.23,0.03996488]
[1740129976140,5.5781,179.24,179.23,6.488e-05]
[1740129976339,24.45051679,179.25,179.13,2.8794]
[1740129976543,5.5799,179.18,179.13,2.8794]
[1740129976842,24.45051679,179.22,179.12,13.12145034]
[1740129977344,24.48945176,179.19,179.15,0.04052589]
[1740129977741,5.5803,179.16,179.15,0.04052589]
[1740129978131,24.48945176,179.19,179.12,7.53995034]
[1740129978331,24.45051679,179.13,179.09,89.94103696]
[1740129978636,8.36,179.12,179.08,34.8370045]
[1740129978840,8.36,179.12,179.06,30.30317988]
[1740129979432,0.04127852,179.11,179.07,0.04084558]
[1740129980038,24.45051679,179.1,179.07,0.04084558]
[1740129980942,30.03271679,179.1,179.07,0.04084558]
[1740129981142,0.04127852,179.11,179.07,0.04084558]
[1740129981337,24.45051679,179.1,179.07,0.04084558]
[1740129982343,0.04127852,179.11,179.07,0.04084558]
[1740129982544,0.97615975,179.11,179.07,0.04084558]
[1740129983642,0.04127852,179.11,179.07,0.04084558]
[1740129985043,24.45051679,179.1,178.87,11.1786]
[1740129985345,5.5832,179.07,178.98,8.6892]
[1740129986046,193.0,179.11,178.98,8.6892]
[1740129986247,0.03739698,179.04,179.01,0.04126914]
[1740129986446,8.36,179.13,179.01,0.04126914]
[1740129986745,8.36,179.13,179.01,24.45051679]
[1740129987744,3.705e-05,179.09,179.05,0.03988026]
[1740129987947,8.36,179.21,179.05,0.03988026]
[1740129988244,0.93439583,179.2,179.04,24.45051679]
[1740129988550,8.36,179.23,179.07,24.45051679]
[1740129988751,0.9343257,179.22,179.08,2.906]
[1740129989055,0.0374702,179.17,179.13,0.040867]
[1740129989647,0.0374702,179.17,179.14,5.5809]
[1740129990247,0.0374702,179.17,179.13,0.040867]
[1740129990448,0.0374702,179.17,179.15,5.5805]
[1740129990953,5.5794,179.2,179.16,5.5803]
[1740129991148,8.36,179.23,179.08,27.35651679]
[1740129991347,0.93424401,179.22,179.08,27.35651679]
[1740129991549,5.5797,179.19,179.13,5.581]
[1740129991853,0.93424401,179.22,179.09,2.8209]
[1740129991854,8.36,179.23,179.09,2.8209]
[1740129992045,0.03523107,179.18,179.14,0.04181138]
[1740129992654,0.03523107,179.18,179.16,5.5801]
[1740129992853,193.0,179.39,179.14,0.04181138]
[1740129993045,24.45051679,179.31,179.14,24.45051679]
[1740129993250,5.5772,179.26,179.14,24.45051679]
[1740129993855,8.36,179.34,179.14,24.45051679]
[1740129994056,0.03623587,179.22,179.18,0.03793358]
[1740129994357,0.93382182,179.32,179.14,24.45051679]
[1740129994556,6.50965474,179.31,179.17,24.45051679]
[1740129994859,24.45051679,179.33,179.18,2.885]
[1740129995051,5.5768,179.28,179.18,2.885]
[1740129995254,24.45051679,179.33,179.18,2.885]
[1740129995452,0.03607879,179.25,179.21,5.61662912]
[1740129995751,5.577,179.27,179.18,2.885]
[1740129995948,0.04184276,179.25,179.21,0.03934954]
[1740129996353,5.5779,179.24,179.21,0.03934954]
[1740129997068,0.04184276,179.25,179.21,0.03934954]
[1740130003766,0.04184276,179.25,179.24,5.5778]
[1740130003964,24.45051679,179.33,179.21,0.03934954]
[1740130004160,0.93367589,179.32,179.16,3.0088]
[1740130004363,5.5768,179.28,179.16,3.0088]
[1740130004661,5.5768,179.28,179.17,15.28353827]
[1740130004864,5.577,179.27,179.17,15.28353827]
[1740130005060,0.04029408,179.24,179.21,0.03532575]
[1740130005461,0.04029408,179.24,179.21,5.61382575]
[1740130005764,0.04029408,179.24,179.21,0.03532575]
[1740130005954,15.28353827,179.3,179.21,0.03532575]
[1740130006565,5.5767,179.28,179.21,0.03532575]
[1740130007060,5.5765,179.29,179.21,0.03532575]
[1740130007366,0.03823009,179.26,179.21,0.03532575]
[1740130007866,15.28353827,179.24,179.21,0.03532575]
[1740130009466,5.5785,179.22,179.21,0.03532575]
[1740130010167,15.28353827,179.24,179.14,2.7655]
[1740130010360,15.28353827,179.18,179.14,2.7655]
[1740130010557,15.28353827,179.18,179.12,2.9142]
[1740130011062,15.28353827,179.18,179.05,15.28353827]
[1740130011270,15.28353827,179.15,179.06,2.9142]
[1740130011470,5.5819,179.12,179.1,0.03744021]
[1740130011768,0.03599763,179.13,179.1,0.03744021]
[1740130013668,24.4970352,179.19,179.1,0.03744021]
[1740130013962,24.4970352,179.22,179.06,2.9142]
[1740130014171,0.934307,179.21,179.06,2.9142]
[1740130014360,0.934307,179.21,179.08,24.4970352]
[1740130014562,6.51240669,179.23,179.08,24.4970352]
[1740130014760,24.4970352,179.22,179.06,2.9142]
[1740130014960,0.03894317,179.17,179.14,0.04109012]
[1740130015162,0.03894317,179.17,179.15,5.5804]
[1740130015370,0.03894317,179.17,179.14,0.04109012]
[1740130016070,0.03894317,179.17,179.15,5.5806]
[1740130016264,0.03894317,179.17,179.14,0.04109012]
[1740130016971,0.03894317,179.17,179.15,5.5804]
[1740130017673,0.03894317,179.17,179.14,5.62199012]
[1740130018470,0.03894317,179.17,179.14,0.04109012]
[1740130018771,0.03894317,179.17,179.16,5.5803]
[1740130018974,32.8570352,179.25,179.15,5.5765]
[1740130019266,24.4970352,179.25,179.15,5.5765]
[1740130019466,5.5773,179.26,179.16,2.9884]
[1740130019661,8.36,179.31,179.16,2.9884]
[1740130020169,0.03989575,179.25,179.21,0.04057112]
[1740130020668,5.5762,179.3,179.26,5.577]
[1740130021070,5.5762,179.3,179.17,24.4970352]
[1740130021272,5.5762,179.3,179.24,5.5777]
[1740130021472,5.5763,179.29,179.24,5.5777]
[1740130021675,24.4970352,179.33,179.17,24.4970352]
[1740130021974,5.5757,179.31,179.25,0.03877425]
[1740130022162,24.4970352,179.33,179.25,0.03877425]
[1740130022364,5.5766,179.29,179.25,0.03877425]
[1740130022773,24.4970352,179.33,179.25,0.03877425]
[1740130023274,24.4970352,179.3,179.25,0.03877425]
[1740130023770,24.4970352,179.26,179.16,2.9884]
[1740130023973,24.4970352,179.23,179.05,24.4970352]
[1740130024180,5.5797,179.19,179.13,5.581]
[1740130024371,24.4970352,179.2,179.12,2.8757]
[1740130025074,0.04152588,179.18,179.14,0.04161009]
[1740130026971,0.04152588,179.18,179.14,5.62241009]
[1740130027174,0.04152588,179.18,179.14,0.04161009]
[1740130028076,5.5801,179.17,179.14,0.04161009]
[1740130028276,0.04152588,179.18,179.14,0.04161009]
[1740130029178,5.5801,179.17,179.14,0.04161009]
[1740130029376,0.04152588,179.18,179.14,0.04161009]
[1740130029976,0.04152588,179.18,179.17,5.58]
[1740130030382,8.36,179.27,179.14,0.04161009]
[1740130030582,0.93397318,179.26,179.1,24.4970352]
[1740130030779,8.36,179.27,179.1,24.4970352]
[1740130031182,5.5781,179.24,179.19,5.5792]
[1740130031483,8.36,179.27,179.1,24.4970352]
[1740130031676,8.36,179.27,179.2,0.04117346]
[1740130031677,5.5788,179.21,179.2,0.04117346]
[1740130032077,24.4970352,179.23,179.19,0.03835321]
[1740130032283,24.4970352,179.23,179.13,5.5812]
[1740130032485,24.4970352,179.23,179.13,5.61764267]
[1740130032687,0.93419834,179.22,179.13,0.03644267]
[1740130032887,24.4970352,179.2,179.13,0.03644267]
[1740130033082,24.4970352,179.17,179.13,0.03644267]
[1740130033283,24.4970352,179.17,179.07,5.7607]
[1740130033480,5.5815,179.13,179.07,11.3438]
[1740130033778,5.5815,179.13,179.1,0.03694362]
[1740130033983,24.4970352,179.17,179.1,0.03694362]
[1740130034179,5.5819,179.11,179.1,0.03694362]
[1740130035290,5.5815,179.13,179.1,0.03694362]
[1740130035487,24.4970352,179.14,179.1,0.03694362]
[1740130035687,5.5813,179.13,179.1,0.03694362]
[1740130035892,24.4970352,179.14,179.1,0.03694362]
[1740130036389,8.36,179.16,179.1,0.03694362]
[1740130036787,8.36,179.16,179.12,5.5815]
[1740130037183,8.36,179.16,179.14,5.5809]
[1740130037589,32.8570352,179.23,179.11,5.6081]
[1740130037787,0.93424875,179.22,179.12,2.8741]
[1740130037994,5.579,179.21,179.15,0.03755383]
[1740130038193,24.4970352,179.19,179.15,0.03755383]
[1740130038384,24.4970352,179.16,179.03,5.5616]
[1740130038784,24.4970352,179.19,179.13,5.5811]
[1740130038991,5.5791,179.2,179.05,24.4970352]
[1740130039186,24.4970352,179.06,178.89,15.10577878]
[1740130039387,24.4970352,179.0,178.89,15.10577878]
[1740130039591,24.4970352,179.0,178.93,0.0393174]
[1740130039791,0.03595969,178.96,178.93,0.0393174]
[1740130039995,8.66,179.07,178.91,3.86126151]
[1740130040191,24.4970352,179.06,178.89,7.55478027]
[1740130040392,24.4970352,179.02,178.89,7.55478027]
[1740130041096,24.4970352,179.02,178.94,0.04209541]
[1740130041895,30.0818352,179.02,178.94,0.04209541]
[1740130042692,24.4970352,179.02,178.94,0.04209541]
[1740130044195,24.4970352,178.99,178.94,0.04209541]
[1740130044391,24.4970352,178.96,178.94,0.04209541]
[1740130044591,5.5869,178.95,178.86,3.0056]
[1740130044792,5.5869,178.95,178.89,0.03649957]
[1740130045096,8.66,179.07,178.89,0.03649957]
[1740130045097,24.4970352,178.93,178.89,0.03649957]
[1740130045490,24.4970352,178.93,178.85,2.999]
[1740130045690,24.4970352,178.9,178.89,0.03960319]
[1740130045886,24.4970352,178.9,178.8,2.999]
[1740130046492,24.4970352,178.9,178.78,5.592]
[1740130046493,24.4970352,178.86,178.62,31.13227646]
[1740130046690,5.5906,178.84,178.74,11.429]
[1740130046891,24.4970352,178.86,178.74,5.8356]
[1740130047088,0.03956392,178.81,178.77,0.03892798]
[1740130047494,24.4970352,178.87,178.74,5.8356]
[1740130047789,0.04008268,178.81,178.77,0.0411346]
[1740130048095,24.4970352,178.84,178.74,5.8356]
[1740130048290,0.03996153,178.81,178.77,0.04086617]
[1740130048491,5.5919,178.79,178.77,0.04086617]
[1740130049396,24.53699673,178.81,178.77,0.04086617]
[1740130049694,30.12829673,178.81,178.77,0.04086617]
[1740130049891,24.53699673,178.81,178.77,0.04086617]
[1740130050090,5.5919,178.8,178.77,0.04086617]
[1740130050492,24.53699673,178.81,178.77,0.04086617]
[1740130050889,0.03996153,178.81,178.77,0.04086617]
[1740130053899,0.03996153,178.81,178.78,5.5921]
[1740130054298,0.03996153,178.81,178.77,0.04086617]
[1740130054502,0.03996153,178.81,178.78,5.5922]
[1740130054900,0.03996153,178.81,178.77,0.04086617]
[1740130055097,0.03996153,178.81,178.77,5.63336617]
[1740130055597,0.03996153,178.81,178.77,0.04086617]
[1740130056491,24.53699673,178.81,178.53,193.0]
[1740130056697,5.5938,178.73,178.67,5.5956]
[1740130056899,33.1170352,178.77,178.64,5.8807]
[1740130057313,33.1170352,178.77,178.67,5.5956]
[1740130057700,5.62939012,178.74,178.7,0.03554766]
[1740130057900,0.03599012,178.74,178.7,0.03554766]
[1740130058502,0.03599012,178.74,178.72,5.5938]
[1740130058902,0.03599012,178.74,178.7,0.03554766]
[1740130059097,0.03599012,178.74,178.73,5.5938]
[1740130059799,5.591,178.82,178.75,5.5928]
[1740130059995,5.591,178.82,178.71,2.9725]
[1740130060702,14.2306,178.84,178.71,2.9725]
[1740130061303,14.2304,178.84,178.71,2.9725]
[1740130061603,0.03884112,178.78,178.75,0.03882894]
[1740130061802,0.03884112,178.78,178.77,5.5925]
[1740130064206,0.03884112,178.78,178.75,5.63162894]
[1740130064802,0.03884112,178.78,178.75,0.03882894]
[1740130066011,24.4970352,178.77,178.68,2.9608]
[1740130066204,24.4970352,178.77,178.65,2.9149]
[1740130067107,5.5944,178.72,178.66,5.5959]
[1740130067304,5.5944,178.72,178.69,0.03841726]
[1740130067704,0.04282943,178.73,178.69,0.03841726]
[1740130068413,5.5943,178.72,178.69,0.03841726]
[1740130068911,0.04282943,178.73,178.69,0.03841726]
[1740130069102,5.63662943,178.73,178.69,0.03841726]
[1740130069307,0.04282943,178.73,178.69,0.03841726]
[1740130071411,5.5943,178.72,178.69,0.03841726]
[1740130071606,0.04282943,178.73,178.69,0.03841726]
[1740130071807,5.5941,178.72,178.69,0.03841726]
[1740130072003,0.04282943,178.73,178.69,0.03841726]
[1740130073517,5.5941,178.72,178.69,0.03841726]
[1740130074210,0.04282943,178.73,178.69,0.03841726]
[1740130075414,5.5943,178.72,178.69,0.03841726]
[1740130075615,0.04282943,178.73,178.69,0.03841726]
[1740130077715,0.04282943,178.73,178.7,5.5946]
[1740130078015,0.04282943,178.73,178.69,0.03841726]
[1740130078218,0.04282943,178.73,178.69,5.63321726]
[1740130078415,0.04282943,178.73,178.69,0.03841726]
[1740130078710,0.04282943,178.73,178.7,5.5945]
[1740130080415,0.04282943,178.73,178.69,0.03841726]
[1740130081414,5.5945,178.71,178.69,0.03841726]
[1740130082216,0.04282943,178.73,178.69,0.03841726]
[1740130082717,5.5947,178.7,178.69,0.03841726]
[1740130082916,0.04282943,178.73,178.69,0.03841726]
[1740130084419,24.4970352,178.71,178.6,8.4335]
[1740130084717,5.5962,178.66,178.51,170.8770352]
[1740130084917,5.5962,178.66,178.59,5.5979]
[1740130085107,24.4970352,178.68,178.52,8.5489]
[1740130085309,5.598,178.6,178.53,5.5997]
[1740130085513,5.598,178.6,178.58,0.03849839]
[1740130085713,24.4970352,178.62,178.58,0.03849839]
[1740130085914,5.5981,178.6,178.58,0.03849839]
[1740130086116,24.4970352,178.59,178.47,10.37738027]
[1740130086315,24.4970352,178.56,178.47,7.55478027]
[1740130086624,32.8970352,178.56,178.47,7.55478027]
[1740130086912,5.5997,178.54,178.47,13.15638027]
[1740130087113,32.8970352,178.56,178.47,7.55478027]
[1740130087312,5.601,178.5,178.49,0.04189368]
[1740130087514,24.53767258,178.52,178.47,7.55478027]
[1740130087709,24.4970352,178.49,178.47,7.55478027]
[1740130087913,30.0984352,178.49,178.42,8.4393]
[1740130088215,24.4970352,178.49,178.37,30.04705673]
[1740130088819,0.04261933,178.45,178.41,0.03546851]
[1740130091422,0.04261933,178.45,178.44,5.6028]
[1740130091726,24.4970352,178.55,178.42,3.0076]
[1740130092022,24.4970352,178.58,178.51,5.6004]
[1740130092221,24.4970352,178.58,178.43,5.6709]
[1740130092625,8.4,178.6,178.43,5.6709]
[1740130092824,0.0430934,178.52,178.49,0.04221543]
[1740130093124,8.4,178.6,178.55,5.5992]
[1740130093319,8.4,178.6,178.45,24.4970352]
[1740130093528,146.62,178.68,178.51,24.4970352]
[1740130093721,24.4970352,178.67,178.52,5.9855]
[1740130093917,24.4970352,178.64,178.52,5.9855]
[1740130094323,0.03624771,178.6,178.56,0.03595862]
[1740130094626,5.5982,178.59,178.56,0.03595862]
[1740130094824,24.53328291,178.6,178.56,0.03595862]
[1740130095724,24.4970352,178.57,178.37,201.42]
[1740130095925,24.4970352,178.54,178.38,5.7378]
[1740130096927,0.03584548,178.48,178.44,0.03638725]
[1740130097925,5.6019,178.47,178.44,0.03638725]
[1740130098226,0.03584548,178.48,178.44,0.03638725]
[1740130098526,5.63774548,178.48,178.44,0.03638725]
[1740130098725,0.03584548,178.48,178.44,0.03638725]
[1740130100130,0.03584548,178.48,178.44,5.63918725]
[1740130100632,5.63744548,178.48,178.44,0.03638725]
[1740130100821,24.53288068,178.48,178.44,0.03638725]
[1740130101831,5.6025,178.45,178.44,0.03638725]
[1740130102127,24.53288068,178.48,178.44,0.03638725]
[1740130103130,5.6023,178.46,178.44,0.03638725]
[1740130103326,24.53288068,178.48,178.44,0.03638725]
[1740130103525,5.6025,178.45,178.44,0.03638725]
[1740130103720,5.6025,178.45,178.36,5.7133]
[1740130103721,24.4970352,178.45,178.36,5.7133]
[1740130104032,24.4970352,178.45,178.28,24.4970352]
[1740130104229,5.527,178.49,178.31,24.4970352]
[1740130104432,24.4970352,178.52,178.34,24.4970352]
[1740130104833,0.03679608,178.45,178.41,0.04219668]
[1740130105235,0.03679608,178.45,178.37,24.4970352]
[1740130105436,0.03679608,178.45,178.41,0.03829992]
[1740130105735,8.42,178.54,178.48,5.6014]
[1740130106033,8.42,178.54,178.4,24.4970352]
[1740130106231,146.72,178.64,178.43,24.4970352]
[1740130106435,32.9170352,178.6,178.43,24.4970352]
[1740130106636,5.5991,178.56,178.5,5.6007]
[1740130106933,0.0398886,178.53,178.5,0.03944868]
[1740130107136,0.0398886,178.53,178.52,5.6003]
[1740130107335,8.42,178.62,178.51,5.7656]
[1740130107737,5.5981,178.6,178.55,5.5994]
[1740130107935,8.42,178.62,178.51,5.7656]
[1740130108435,0.03915797,178.58,178.55,0.03687364]
[1740130109842,40.0556782,178.66,178.55,0.03687364]
[1740130110143,5.5963,178.65,178.59,5.5979]
[1740130110334,40.0556782,178.69,178.53,40.0556782]
[1740130110531,5.596,178.66,178.53,40.0556782]
[1740130110735,40.0556782,178.66,178.51,5.7656]
[1740130111035,40.0556782,178.63,178.51,5.7656]
[1740130111231,40.0556782,178.63,178.58,0.03965533]
[1740130111232,0.04305695,178.61,178.58,0.03965533]
[1740130111642,5.5981,178.59,178.58,0.03965533]
[1740130111936,5.5981,178.59,178.58,5.533e-05]
[1740130112240,5.5999,178.54,178.48,5.6015]
[1740130112839,8.42,178.59,178.43,6.0267]
[1740130113240,0.03921106,178.53,178.49,0.03732983]
[1740130113440,8.42,178.59,178.52,5.6003]
[1740130113738,48.4756782,178.63,178.45,40.0556782]
[1740130114645,0.03736202,178.56,178.52,0.04235832]
[1740130114845,8.42,178.63,178.48,40.0556782]
[1740130115043,5.5976,178.61,178.48,40.0556782]
[1740130115242,8.42,178.63,178.48,40.0556782]
[1740130115647,5.5976,178.61,178.56,5.5991]
[1740130116046,0.03541927,178.6,178.57,0.04307183]
[1740130116443,0.03541927,178.6,178.57,5.64187183]
[1740130116638,0.03541927,178.6,178.57,0.04307183]
[1740130116844,40.0556782,178.68,178.57,0.04307183]
[1740130117145,40.0556782,178.68,178.52,3.0277]
[1740130117443,8.44,178.7,178.54,40.0556782]
[1740130117646,5.595,178.69,178.64,5.5966]
[1740130117848,40.0556782,178.74,178.57,40.0556782]
[1740130118045,40.0556782,178.74,178.65,0.03854914]
[1740130118744,40.0556782,178.74,178.65,5.63454914]
[1740130118940,8.46,178.75,178.65,0.03854914]
[1740130119948,8.46,178.75,178.65,5.63474914]
[1740130120343,48.4956782,178.77,178.65,5.63474914]
[1740130120647,0.93693125,178.76,178.61,2.8843]
[1740130120847,48.4956782,178.77,178.69,0.04277469]
[1740130121149,5.5944,178.71,178.69,0.04277469]
[1740130121647,40.0556782,178.77,178.69,0.04277469]
[1740130121854,40.0556782,178.8,178.69,0.04277469]
[1740130122148,40.0556782,178.8,178.63,40.0556782]
[1740130122149,5.594,178.73,178.63,40.0556782]
[1740130122449,40.0556782,178.8,178.63,40.0556782]
[1740130122644,40.0556782,178.8,178.66,0.0391562]
[1740130122845,40.0556782,178.8,178.63,40.0556782]
[1740130123042,40.0556782,178.8,178.71,0.04232987]
[1740130123350,5.5922,178.78,178.72,5.5939]
[1740130123545,8.4,178.81,178.71,0.04232987]
[1740130123847,5.5918,178.8,178.74,5.5934]
[1740130124044,5.5918,178.8,178.72,5.9783]
[1740130124245,8.4,178.85,178.75,0.04303188]
[1740130124445,8.4,178.85,178.76,5.5928]
[1740130124748,186.7156782,178.86,178.72,5.9783]
[1740130124949,186.7156782,178.86,178.79,0.03871567]
[1740130125853,40.0556782,178.86,178.79,0.03871567]
[1740130126149,0.8865131,178.88,178.79,0.03871567]
[1740130126550,5.5916,178.8,178.79,0.03871567]
[1740130127254,5.5916,178.8,178.79,1.567e-05]
[1740130127554,45.6472782,178.8,178.79,1.567e-05]